Workbook

Sheet INÍCIO
B1: SOBRE ESTE MODELO
B2: Acompanhe o Investimento inicial no site, seus Benefícios e Custos usando esta Ferramenta de orçamento de site.
B3: Preencha com o Nome da empresa e a Data.
B4: Insira os detalhes nas tabelas para calcular automaticamente os Totais e as Métricas de avaliação.
B5: Observação:
B6: há instruções adicionais na coluna A de cada planilha FERRAMENTA DE ORÇAMENTO. Este texto está oculto de propósito. Para removê-lo, selecione a coluna A e selecione Excluir. Para reexibir o texto, selecione a coluna A e altere a cor da fonte.
B7: Para saber mais sobre as tabelas na planilha, pressione Shift e F10 em uma tabela, selecione a opção TABELA e depois TEXTO ALTERNATIVO.

Sheet FERRAMENTA DE ORÇAMENTO
A1: Crie um Orçamento de site nesta planilha. Instruções úteis sobre como usar esta planilha estão nas células desta coluna. Pressione Seta para baixo para começar.
A2: Insira o Nome da empresa na célula à direita. | B2: Nome da empresa
A3: O título desta planilha está na célula à direita. | B3: Ferramenta de orçamento de site
A4: Insira a data na célula à direita. | B4: Data
A5: A dica está na célula à direita. | B5: As células em cinza contêm cálculos que não devem ser alterados.
A6: Insira detalhes na tabela Taxa, começando na célula à direita. A próxima instrução está na célula A10. | B6: Dados da empresa | C6: Taxa
B7: Taxa de retorno obrigatória | C7: 10%
B8: Alíquota de imposto | C8: 30%
A10: Insira detalhes na tabela Investimento inicial, começando na célula à direita. A próxima instrução está na célula A16. | B10: Investimento inicial no site | C10: ANO | D10: 1 | E10: 2 | F10: 3
B11: Hardware (por exemplo, servidores) | C11: R$ 25,000.00
B12: Software (por exemplo, o software catálogo de comércio eletrônico) | C12: R$ 15,000.00
B13: Desenvolvimento (por exemplo, desenvolvimento e design de sites de terceiros) | C13: R$ 150,000.00
B14: Investimentos totais iniciais | C14: =SUBTOTAL(109,InvestimentoInicial[ANO]) -> R$ 190,000.00
A16: Insira detalhes na tabela Benefícios, começando na célula à direita. A próxima instrução está na célula A24. | B16: Benefícios do site | C16: ANO | D16: 1 | E16: 2 | F16: 3
B17: Vendas diretas | D17: R$ 15,000.00 | E17: R$ 50,000.00 | F17: R$ 75,000.00
B18: Vendas incrementais resultantes da eficácia promocional/de vendedor aprimorada | D18: R$ 25,000.00 | E18: R$ 25,000.00 | F18: R$ 25,000.00
B19: Vendas incrementais resultantes de uma participação maior do parceiro | D19: R$ 25,000.00 | E19: R$ 25,000.00 | F19: R$ 25,000.00
B20: Custos de viagem reduzidos | D20: R$ 25,000.00 | E20: R$ 25,000.00 | F20: R$ 25,000.00
B21: Custos de atendimento ao cliente reduzidos | D21: R$ 50,000.00 | E21: R$ 50,000.00 | F21: R$ 50,000.00
B22: Benefícios totais | D22: =SUBTOTAL(109,Benefícios[1]) -> R$ 140,000.00 | E22: =SUBTOTAL(109,Benefícios[2]) -> R$ 175,000.00 | F22: =SUBTOTAL(109,Benefícios[3]) -> R$ 200,000.00
A24: Insira detalhes na tabela Custos, começando na célula à direita. Os valores são calculados automaticamente na célula que contém as fórmulas. A próxima instrução está na célula A32. | B24: Custos (excluindo investimentos capital inicial) | C24: ANO | D24: 1 | E24: 2 | F24: 3
B25: Custo de vendas | D25: R$ 7,500.00 | E25: R$ 25,000.00 | F25: R$ 37,500.00
B26: Manutenção | D26: R$ 15,000.00 | E26: R$ 15,000.00 | F26: R$ 15,000.00
B27: Gerenciamento de projetos, suporte técnico | D27: R$ 35,000.00 | E27: R$ 35,000.00 | F27: R$ 35,000.00
B28: Publicidade online, registro do mecanismo de pesquisa | D28: R$ 10,000.00 | E28: R$ 10,000.00 | F28: R$ 10,000.00
B29: Depreciação nas despesas de capital (o cálculo utiliza um período de três anos) | D29: =InvestimentoInicial[[#Totals],[ANO]]/3 -> R$ 63,333.33 | E29: =InvestimentoInicial[[#Totals],[ANO]]/3 -> R$ 63,333.33 | F29: =InvestimentoInicial[[#Totals],[ANO]]/3 -> R$ 63,333.33
B30: Custos totais | D30: =SUBTOTAL(109,Custos[1]) -> R$ 130,833.33 | E30: =SUBTOTAL(109,Custos[2]) -> R$ 148,333.33 | F30: =SUBTOTAL(109,Custos[3]) -> R$ 160,833.33
A32: Os valores são calculados automaticamente na tabela Totais, que começa na célula à direita. A próxima instrução está na célula A40. | B32: Totais | C32: ANO | D32: 1 | E32: 2 | F32: 3
B33: Benefícios líquido (custos) | D33: =Benefícios[[#Totals],[1]]-Custos[[#Totals],[1]] -> R$ 9,166.67 | E33: =Benefícios[[#Totals],[2]]-Custos[[#Totals],[2]] -> R$ 26,666.67 | F33: =Benefícios[[#Totals],[3]]-Custos[[#Totals],[3]] -> R$ 39,166.67
B34: Imposto | D34: =D33*AlíquotaDeImposto -> R$ 2,750.00 | E34: =E33*AlíquotaDeImposto -> R$ 8,000.00 | F34: =F33*AlíquotaDeImposto -> R$ 11,750.00
B35: Valor após redução de impostos | D35: =D33-D34 -> R$ 6,416.67 | E35: R$ 18,666.67 | F35: R$ 27,416.67
B36: Depreciação readicionada | D36: =D29 -> R$ 63,333.33 | E36: =E29 -> R$ 63,333.33 | F36: =F29 -> R$ 63,333.33
B37: Fluxo de caixa | C37: =-InvestimentoInicial[[#Totals],[ANO]] -> -R$ 190,000.00 | D37: =D35+D36 -> R$ 69,750.00 | E37: R$ 82,000.00 | F37: R$ 90,750.00
B38: Fluxo de caixa cumulativo | C38: =C37 -> -R$ 190,000.00 | D38: =C38+D37 -> -R$ 120,250.00 | E38: -R$ 38,250.00 | F38: R$ 52,500.00
A40: As Métricas de avaliação são calculadas automaticamente na tabela Métricas, que começa na célula à direita. | B40: Métricas de avaliação | C40: Valores
B41: Valor presente líquido (VPL) | C41: =C37+(NPV(ROR,D37:F37)) -> R$ 9,359.50
B42: Taxa interna de retorno (TIR) | C42: =IRR(C37:F37) -> 12.66%
B43: Período de retorno (em anos) | C43: =IF(F38<=0,"Excede em três anos",IF(E38<=0,(F37-F38)/F37+2,IF(D38<=0,(E37-E38)/E37+1,IF(C38<=0,(D37-D38)/D37,"NA")))) -> 2.42
